bitfinex/quotes_ETHUSD_20241023
["timestamp","ask_amount","ask_price","bid_price","bid_amount"]
[1729646513341,0.8227,2624.5,2624.0,3.50607645]
[1729646513542,3.42912,2624.6,2624.0,3.50607645]
[1729646513756,6.85829,2624.6,2624.0,4.68189081]
[1729646513978,6.85834,2624.6,2624.0,6.01515545]
[1729646514147,3.42912,2624.6,2624.0,6.01515545]
[1729646514472,6.85829,2624.6,2624.0,6.01515545]
[1729646514767,6.85829,2624.6,2624.1,1.17581436]
[1729646515152,3.42924,2624.5,2624.1,1.17581436]
[1729646517168,3.42947,2624.4,2624.1,1.17581436]
[1729646519454,3.42947,2624.4,2624.1,1.92887644]
[1729646519652,3.42947,2624.4,2624.1,0.75306208]
[1729646519877,3.42947,2624.4,2623.8,0.7766]
[1729646520100,3.42947,2624.4,2623.8,4.20666]
[1729646520387,3.42956,2624.3,2623.8,4.20671]
[1729646520592,3.42947,2624.4,2623.8,4.20671]
[1729646521321,3.42947,2624.4,2623.9,3.43]
[1729646521457,3.42947,2624.4,2624.0,0.42066]
[1729646522295,3.42946,2624.4,2624.0,0.42066]
[1729646522494,6.85889,2624.4,2624.0,0.42066]
[1729646522672,3.42949,2624.3,2624.0,0.42066]
[1729646522871,3.42943,2624.4,2624.0,0.42066]
[1729646523271,6.8589,2624.4,2624.0,0.42066]
[1729646523802,3.42956,2624.3,2624.0,0.42066]
[1729646523955,3.42956,2624.3,2623.8,0.7766]
[1729646524503,3.42965,2624.2,2623.8,0.7766]
[1729646524977,7.68159,2624.4,2623.8,4.20673]
[1729646525179,3.42955,2624.3,2623.8,4.20673]
[1729646525696,3.42964,2624.2,2623.8,0.7766]
[1729646526000,3.42981,2624.1,2623.8,1.840315]
[1729646526198,3.974809,2625.0,2623.9,0.82641625]
[1729646526405,3.42923,2624.5,2623.9,4.25634625]
[1729646526613,3.42923,2624.5,2624.0,0.42563463]
[1729646528404,3.42923,2624.5,2624.0,3.85546463]
[1729646528603,3.42923,2624.5,2624.0,0.5018451]
[1729646528813,3.42923,2624.5,2624.0,3.9316951]
[1729646528984,3.42923,2624.5,2624.0,0.07621047]
[1729646529716,3.42923,2624.5,2624.0,3.50606047]
[1729646530896,3.42938,2624.4,2623.9,4.18013]
[1729646533014,6.85856,2624.5,2623.9,4.18013]
[1729646533318,6.85856,2624.5,2623.9,4.941162]
[1729646533628,6.85856,2624.5,2623.9,6.12913568]
[1729646533803,3.42936,2624.4,2623.9,6.12913568]
[1729646534569,3.42936,2624.4,2623.9,4.941162]
[1729646535170,3.42949,2624.3,2623.9,1.511232]
[1729646536214,3.42949,2624.3,2623.9,0.7502]
[1729646539503,3.42964,2624.2,2623.7,4.18036]
[1729646540787,4.19164,2624.2,2623.7,4.18036]
[1729646542431,3.42949,2624.3,2623.7,4.18036]
[1729646542729,3.42949,2624.3,2623.7,5.06023837]
[1729646543088,3.42949,2624.3,2623.7,8.49043837]
[1729646543905,3.42949,2624.3,2623.8,3.43012]
[1729646545454,3.42949,2624.3,2623.9,0.3819]
[1729646545733,3.42949,2624.3,2623.8,3.43012]
[1729646546947,3.42948,2624.3,2623.7,0.7502]
[1729646547109,4.16440271,2624.4,2623.5,4.19664]
[1729646547110,3.42989,2624.0,2623.5,4.19664]
[1729646547310,3.42989,2624.0,2623.6,3.43038]
[1729646547311,0.762,2624.0,2623.6,3.43038]
[1729646547690,3.42981,2624.1,2623.6,6.86071]
[1729646547825,0.762,2624.2,2623.8,3.43007]
[1729646547999,3.42945,2624.4,2623.9,4.19613]
[1729646548199,4.19117,2624.6,2624.0,3.42977]
[1729646548400,4.19117,2624.6,2624.0,6.85957]
[1729646548713,4.19117,2624.6,2624.1,3.42973]
[1729646550436,3.42924,2624.5,2624.1,3.42973]
[1729646550604,3.409754,2624.5,2624.1,3.42973]
[1729646550803,0.01,2624.0,2623.5,1.18797368]
[1729646551061,0.01,2624.0,2622.8,1.58396491]
[1729646551062,0.762,2623.0,2622.8,1.58396491]
[1729646551354,3.43113,2623.1,2622.6,1.19057723]
[1729646551563,7.59526271,2623.3,2622.7,0.07625584]
[1729646551564,4.19286,2623.3,2622.7,0.07625584]
[1729646551766,3.43068,2623.4,2622.8,0.7662]
[1729646551965,3.43079,2623.3,2622.8,0.7662]
[1729646552764,6.86169,2623.3,2622.8,0.7662]
[1729646552925,3.43097,2623.2,2622.8,0.7662]
[1729646553725,3.43105,2623.1,2622.8,0.7662]
[1729646554726,3.43125,2623.0,2622.8,0.7662]
[1729646555858,3.40240271,2622.9,2622.8,0.7662]
[1729646560055,3.43075,2623.4,2622.8,2.51489798]
[1729646560231,3.43075,2623.4,2622.9,0.32773096]
[1729646560430,6.83330271,2623.3,2622.9,0.2514898]
[1729646560681,6.83330271,2623.3,2622.8,0.7662]
[1729646560971,3.4306,2623.5,2622.9,0.07624127]
[1729646561175,3.43047,2623.6,2622.9,3.50746127]
[1729646561474,3.43053,2623.5,2623.0,0.7942]
[1729646562564,10.26338271,2623.6,2623.0,0.7942]
[1729646562769,3.43053,2623.5,2623.1,0.422542]
[1729646565871,6.83287271,2623.6,2623.1,0.422542]
[1729646566169,3.43066,2623.4,2623.1,0.422542]
[1729646567756,3.40240271,2623.2,2622.6,3.0]
[1729646567961,3.40240271,2623.2,2622.8,3.0]
[1729646568873,6.83335271,2623.2,2622.8,3.0]
[1729646570054,3.40240271,2623.2,2622.7,0.7942]
[1729646570254,3.43112,2623.1,2622.8,0.37942]
[1729646571043,10.26412271,2623.3,2622.8,0.37942]
[1729646571249,3.43094,2623.2,2622.8,3.37942]
[1729646571873,6.83321271,2623.3,2622.8,3.37942]
[1729646572174,3.43081,2623.3,2622.9,0.760511]
[1729646573345,6.86168,2623.3,2622.9,0.760511]
[1729646574951,3.43081,2623.3,2622.9,0.760511]
[1729646580790,3.4306,2623.5,2622.9,0.760511]
[1729646580981,3.4306,2623.5,2623.0,0.779]
[1729646581295,6.86123,2623.5,2623.0,0.779]
[1729646581527,6.86123,2623.5,2623.1,3.43105]
[1729646581528,3.4306,2623.5,2623.1,3.43105]
[1729646581968,6.86121,2623.5,2623.0,1.9191941]
[1729646582171,3.4306,2623.5,2623.0,1.9191941]
[1729646582390,3.4306,2623.5,2623.0,5.3502441]
[1729646584011,3.4306,2623.5,2623.1,3.43103]
[1729646585218,3.4306,2623.5,2623.0,1.9191941]
[1729646585770,3.4306,2623.5,2623.0,5.3503441]
[1729646587402,3.40240271,2623.6,2623.1,3.43103]
[1729646587778,6.83288271,2623.6,2623.1,3.43103]
[1729646589568,3.43053,2623.5,2623.1,3.43103]
[1729646590769,6.86114,2623.5,2623.0,1.9191941]
[1729646590979,3.43053,2623.5,2623.0,1.9191941]
[1729646591180,3.43053,2623.5,2623.0,0.779]
[1729646591882,3.43053,2623.5,2623.0,4.21018]
[1729646592097,3.40240271,2623.6,2623.1,3.43104]
[1729646592385,3.40240271,2623.6,2623.2,0.803]
[1729646592386,3.43048,2623.6,2623.2,0.803]
[1729646593310,3.43054,2623.5,2623.2,0.803]
[1729646598383,1.6755567,2623.3,2623.2,0.803]
[1729646601632,3.43054,2623.5,2623.2,0.803]
[1729646601823,1.6755567,2623.3,2623.2,0.803]
[1729646603869,5.1063467,2623.3,2623.0,1.95287723]
[1729646604505,1.6755567,2623.1,2623.0,1.95287723]
[1729646604906,1.6755567,2623.1,2623.0,0.7623]
[1729646605136,1.6755567,2623.1,2623.0,1.95287723]
[1729646606040,4.22324,2623.5,2623.0,1.19057723]
[1729646606041,5.1064867,2623.2,2623.0,1.19057723]
[1729646606357,4.22382,2623.1,2622.8,1.19057723]
[1729646606563,4.22382,2623.1,2622.7,1.19057723]
[1729646606564,1.6755567,2622.9,2622.7,1.19057723]
[1729646607351,1.6755567,2622.9,2622.6,1.95287723]
[1729646608223,1.6755567,2622.7,2622.6,1.95287723]
[1729646608425,1.6755567,2622.7,2622.5,1.74574138]
[1729646609005,1.6755567,2622.6,2622.5,1.74574138]
[1729646609309,3.43141,2622.9,2622.5,0.55516415]
[1729646609512,4.22343,2623.4,2622.8,3.43133]
[1729646609737,1.6755567,2623.3,2623.0,0.7623]
[1729646610206,5.1062867,2623.4,2623.0,0.7623]
[1729646610399,1.6755567,2623.4,2623.0,4.19346]
[1729646610605,1.6755567,2623.4,2623.0,5.38398723]
[1729646610836,1.6755567,2623.5,2623.0,8.81509723]
[1729646611037,1.6755567,2623.5,2623.0,6.83238952]
[1729646611625,5.1061167,2623.5,2623.0,6.83238952]
[1729646611842,3.43056,2623.5,2623.0,6.83238952]
[1729646612144,1.6755567,2623.4,2623.0,6.83238952]
[1729646612844,1.6755567,2623.3,2623.0,6.83238952]
[1729646613355,1.6755567,2623.2,2623.0,2.21070229]
[1729646615746,1.6755567,2623.4,2623.1,3.43105]
[1729646616324,4.22289,2623.8,2623.2,3.43091]
[1729646616501,1.6755567,2623.7,2623.3,0.7751]
[1729646616828,5.1058867,2623.7,2623.3,0.7751]
[1729646617029,1.6755567,2623.6,2623.3,0.7751]
[1729646617214,3.7935,2624.1,2623.3,0.7751]
[1729646617414,1.6755567,2623.7,2623.3,4.20586]
[1729646617905,3.43019,2623.8,2623.3,4.20586]
[1729646618206,1.6755567,2623.6,2623.3,0.7751]
[1729646618907,1.6755567,2623.6,2623.3,4.20589]
[1729646619303,1.6755567,2623.6,2623.3,0.7751]
[1729646620228,1.6755567,2623.7,2623.3,1.4366569]
[1729646620632,1.6755567,2623.7,2623.3,4.8674269]
[1729646621034,1.6755567,2623.6,2623.3,1.4366569]
[1729646621942,1.6755567,2623.4,2623.3,0.7751]
[1729646622120,1.6755567,2623.4,2623.1,4.62162723]
[1729646622316,1.6755567,2623.4,2623.1,5.39672723]
[1729646622942,4.22388,2623.7,2623.1,1.96567723]
[1729646623171,1.6755567,2623.4,2623.1,1.96567723]
[1729646623346,1.6755567,2623.4,2623.1,3.04119074]
[1729646630191,1.6755567,2623.4,2623.1,1.85061351]
[1729646630423,1.6755567,2623.4,2623.1,0.7751]
[1729646630581,5.1062267,2623.4,2623.1,0.7751]
[1729646631086,1.6755567,2623.2,2623.0,1.19057723]
[1729646632068,5.1062967,2623.4,2623.0,1.19057723]
[1729646632392,5.1062967,2623.4,2623.1,0.73240851]
[1729646632599,5.1062967,2623.4,2623.0,1.19057723]
[1729646632765,1.6755567,2623.2,2622.9,2.30881023]
[1729646632966,1.6755567,2623.2,2623.0,1.19057723]
[1729646633583,1.6755567,2623.2,2622.9,2.30881023]
[1729646634111,1.6755567,2623.2,2622.9,5.74011023]
[1729646634454,1.6755567,2623.2,2623.1,1.19057723]
[1729646634891,1.6755567,2623.2,2623.1,1.19396292]
[1729646635279,3.43069,2623.4,2623.0,2.26950743]
[1729646635280,5.1062467,2623.4,2623.0,2.26950743]
[1729646636786,1.6755567,2623.2,2623.0,1.19396292]
[1729646637166,1.6755567,2623.2,2622.9,2.31219592]
[1729646638062,0.761,2623.3,2622.9,2.31219592]
[1729646639463,0.761,2623.3,2622.9,5.74347592]
[1729646640494,0.761,2623.3,2622.9,2.31219592]
[1729646641585,5.1062467,2623.4,2622.9,5.74341592]
[1729646642937,5.1062467,2623.4,2623.0,3.43117]
[1729646642938,1.6755567,2623.4,2623.0,3.43117]
[1729646654530,1.6755567,2623.4,2623.0,4.62513292]
[1729646655337,1.6755567,2623.4,2623.1,1.19396292]
[1729646655919,1.6755567,2623.4,2623.0,4.62513292]
[1729646656145,1.6755567,2623.4,2623.0,5.90007917]
[1729646658239,3.43024,2623.8,2623.1,0.7739]
[1729646658447,5.1057967,2623.8,2623.4,0.7739]
[1729646658642,5.1057667,2623.8,2623.4,0.7739]
[1729646659136,1.6755567,2623.6,2623.4,0.7739]
[1729646664205,1.6755567,2623.6,2623.2,0.7524]
[1729646664408,0.8323,2623.9,2623.2,0.7524]
[1729646664409,1.6755567,2623.3,2623.2,0.7524]
[1729646665930,5.1064067,2623.3,2623.0,1.94636292]
[1729646667808,1.6755567,2623.3,2623.0,1.94636292]
[1729646672910,1.6755567,2623.3,2623.0,5.37752292]
[1729646673249,1.6755567,2623.3,2623.0,6.61591133]
[1729646674445,1.6755567,2623.3,2623.0,3.18475133]
[1729646675145,1.6755567,2623.3,2623.1,1.19396292]
[1729646675855,1.6755567,2623.3,2623.0,1.94636292]
[1729646676252,1.6755567,2623.3,2623.1,1.19396292]
[1729646677050,1.6755567,2623.3,2623.0,1.94636292]
[1729646677543,1.6755567,2623.3,2623.1,1.19396292]
[1729646678414,1.6755567,2623.3,2623.0,4.18356]
[1729646678415,1.6755567,2623.3,2623.0,1.94636292]
[1729646678846,5.1063667,2623.3,2623.0,1.19396292]
[1729646679365,1.6755567,2623.3,2623.0,1.19396292]
[1729646680813,1.6755567,2623.1,2623.0,1.19396292]
[1729646682615,5.1063467,2623.3,2623.0,1.19396292]
[1729646683251,1.6755567,2623.1,2623.0,1.19396292]
[1729646683558,2.4385567,2623.1,2622.9,1.19396292]
[1729646684412,5.8696367,2623.1,2622.8,1.19396292]
[1729646684613,1.6755567,2622.9,2622.8,1.19396292]
[1729646686129,1.6755567,2622.9,2622.7,1.19396292]
[1729646686330,1.6755567,2622.8,2622.6,1.19396292]
[1729646686944,1.6755567,2622.7,2622.6,1.19396292]
[1729646687173,1.6755567,2622.7,2622.5,1.19396292]
[1729646687348,1.6755567,2622.8,2622.5,1.19396292]
[1729646687934,1.6755567,2622.7,2622.5,1.19396292]
[1729646688164,1.6755567,2622.6,2622.5,1.19396292]
[1729646688364,2.4385567,2622.6,2622.4,1.19396292]
[1729646688640,1.6755567,2622.5,2622.3,4.62603292]
[1729646690291,2.4385567,2622.6,2622.3,4.62603292]
[1729646690501,0.8005,2623.0,2622.5,3.43183]
[1729646690639,0.8005,2623.0,2622.7,3.43148]
[1729646690842,4.23177,2623.0,2622.5,4.62570292]
[1729646691141,4.23177,2623.0,2622.5,5.97074219]
[1729646692080,1.6755567,2622.8,2622.5,5.97074219]
[1729646692283,1.6755567,2622.8,2622.5,4.77677927]
[1729646697605,1.6755567,2622.9,2622.5,4.77677927]
[1729646698595,1.6755567,2622.8,2622.5,4.77677927]
[1729646699107,1.6755567,2622.9,2622.5,4.77677927]
[1729646699460,1.6755567,2622.8,2622.5,4.77677927]
[1729646699702,1.6755567,2622.9,2622.5,4.77677927]
[1729646700080,1.6755567,2622.8,2622.5,4.77677927]
[1729646700593,1.6755567,2622.9,2622.5,4.77677927]
[1729646702924,1.6755567,2622.9,2622.5,8.20853927]
[1729646703121,1.6755567,2622.9,2622.5,4.77677927]
[1729646707531,1.6755567,2622.9,2622.5,8.20854927]
[1729646707841,0.8224,2623.2,2622.7,0.7853]
[1729646707997,3.43066,2623.4,2622.9,3.43125]
[1729646708586,1.6755567,2623.3,2622.9,3.43125]
[1729646708919,5.1063767,2623.3,2622.9,3.43125]
[1729646710452,1.6755567,2623.3,2622.9,4.196034]
[1729646711695,5.1063567,2623.3,2622.9,4.196034]
[1729646712294,1.6755567,2623.2,2622.9,4.196034]
[1729646716426,1.6755567,2623.2,2622.9,3.43123]
[1729646719266,4.25294,2623.5,2622.7,1.97926292]
[1729646719417,1.6755567,2623.2,2623.0,3.43111]
[1729646719621,1.6755567,2623.3,2623.0,3.43111]
[1729646720250,1.6755567,2623.2,2623.0,3.43111]
[1729646720441,1.6755567,2623.3,2623.0,3.43111]
[1729646721438,0.8224,2623.5,2623.0,1.63674329]
[1729646721753,5.1059867,2623.6,2623.1,3.43097]
[1729646722064,1.6755567,2623.5,2623.1,3.43097]
[1729646723650,1.6755567,2623.6,2623.3,0.8311]
[1729646724454,1.6755567,2623.6,2623.3,4.26182]
[1729646728259,1.6755567,2623.6,2623.3,4.26032048]
[1729646728422,1.6755567,2623.5,2623.3,4.26032048]
[1729646730717,1.6755567,2623.5,2623.3,0.82960048]
[1729646731055,1.6755567,2623.4,2623.3,0.82960048]
[1729646731853,1.6755567,2623.5,2623.3,0.82960048]
[1729646733783,1.6755567,2623.4,2623.3,0.82960048]
[1729646735786,1.6755567,2623.5,2623.3,0.82960048]
[1729646752654,1.6755567,2623.5,2623.2,3.43086]
[1729646756076,3.43015,2623.8,2623.2,3.43085]
[1729646756277,1.6755567,2623.6,2623.2,3.43092]
[1729646757847,1.6755567,2623.4,2623.1,1.99146292]
[1729646758181,1.6755567,2623.4,2623.1,4.22855]
[1729646758402,1.6755567,2623.4,2623.1,5.42251292]
[1729646758616,5.1062267,2623.4,2623.1,1.99146292]
[1729646758769,5.1064767,2623.2,2622.9,1.99146292]
[1729646758963,1.6755567,2623.1,2622.9,1.19396292]
[1729646759272,1.6755567,2623.2,2622.9,1.19396292]
[1729646760566,1.6755567,2623.1,2622.9,1.19396292]
[1729646760762,1.6755567,2623.0,2622.9,1.19396292]
[1729646760999,1.6755567,2623.0,2622.8,1.19396292]
[1729646761000,5.1067567,2623.0,2622.8,1.19396292]
[1729646761162,5.1067567,2623.0,2622.6,1.19396292]
[1729646761163,3.43144,2622.8,2622.6,1.19396292]
[1729646761368,3.43144,2622.8,2622.5,1.19396292]
[1729646761369,1.6755567,2622.7,2622.5,1.19396292]
[1729646761599,1.6755567,2622.6,2622.5,1.19396292]
[1729646762623,1.6755567,2622.7,2622.5,1.19396292]
[1729646763167,1.6755567,2622.6,2622.5,1.19396292]
[1729646763402,1.6755567,2622.6,2622.4,1.99146292]
[1729646763903,1.6755567,2622.7,2622.4,1.99146292]
[1729646765109,5.1071367,2622.7,2622.4,1.99146292]
[1729646765414,1.6755567,2622.6,2622.3,4.62595292]
[1729646765580,1.6755567,2622.6,2622.4,1.19396292]
[1729646766000,1.6755567,2622.7,2622.4,1.19396292]
[1729646766204,1.6755567,2622.8,2622.4,4.62592292]
[1729646766414,1.6755567,2622.7,2622.3,4.62595292]
[1729646766618,1.6755567,2622.7,2622.4,1.19396292]
[1729646766934,1.6755567,2622.7,2622.3,4.62595292]
[1729646767102,1.6755567,2622.6,2622.4,1.19396292]
[1729646767303,1.6755567,2622.6,2622.3,1.19396292]
[1729646767625,2.4716567,2622.6,2622.2,1.98446292]
[1729646767836,2.4716567,2622.6,2622.2,5.41669292]
[1729646768127,1.6755567,2622.5,2622.2,1.98446292]
[1729646768331,1.6755567,2622.5,2622.2,5.41667292]
[1729646768736,5.9033767,2622.6,2622.2,5.41667292]
[1729646768932,1.6755567,2622.5,2622.2,5.41667292]
[1729646769131,1.6755567,2622.5,2622.2,4.62617292]
[1729646769600,1.6755567,2622.5,2622.2,3.43221]
[1729646770519,2.4716567,2622.6,2622.2,3.43215]
[1729646771233,2.4716567,2622.6,2622.2,6.86431]
[1729646771435,2.4716567,2622.6,2622.2,3.43215]
[1729646772110,2.4716567,2622.6,2622.2,6.86431]
[1729646772303,0.7961,2622.6,2622.2,3.43215]
[1729646772508,0.7961,2622.6,2622.3,3.43209]
[1729646774454,2.4716567,2622.6,2622.3,3.43209]
[1729646774823,0.7961,2622.6,2622.3,3.43209]
[1729646775123,2.4716567,2622.6,2622.3,3.43209]
[1729646775818,0.7961,2622.6,2622.3,3.43209]
[1729646776341,5.9033767,2622.6,2622.1,3.43234]
[1729646776544,5.9033767,2622.6,2622.2,3.43222]
[1729646776545,1.6755567,2622.5,2622.2,3.43222]
[1729646776749,1.6755567,2622.5,2622.1,3.43234]
[1729646777066,1.6755567,2622.5,2622.1,4.46110201]
[1729646777751,1.6755567,2622.5,2622.1,7.89340201]
[1729646778855,1.6755567,2622.5,2622.1,3.43233]
[1729646779535,1.6755567,2622.4,2622.1,3.43233]
[1729646780357,1.6755567,2622.5,2622.1,3.43233]
[1729646782278,1.6755567,2622.5,2622.1,6.86463]
[1729646782582,1.6755567,2622.5,2622.1,6.86458]
[1729646782751,1.6755567,2622.5,2622.1,3.43228]
[1729646783785,5.1074267,2622.5,2622.1,3.43228]
[1729646784083,5.1074267,2622.5,2622.0,0.7905]
[1729646784084,1.6755567,2622.4,2622.0,4.22297]
[1729646785285,5.1074267,2622.5,2622.1,3.43235]
[1729646787841,1.6755567,2622.5,2622.1,3.43235]
[1729646788041,5.9033667,2622.6,2622.1,3.43235]
[1729646788276,1.6755567,2622.5,2622.1,3.43235]
[1729646789998,5.9033667,2622.6,2622.1,3.43235]
[1729646790523,1.6755567,2622.5,2622.1,3.43235]
[1729646790820,5.9033667,2622.6,2622.1,3.43235]
[1729646791522,1.6755567,2622.5,2622.1,3.43235]
[1729646791681,5.9033667,2622.6,2622.1,3.43235]
[1729646792116,1.6755567,2622.5,2622.1,3.43235]
[1729646792524,5.9033667,2622.6,2622.1,3.43235]
[1729646792834,1.6755567,2622.5,2622.1,3.43235]
[1729646793635,5.9033667,2622.6,2622.1,3.43235]
[1729646794906,1.6755567,2622.5,2622.1,3.43235]
[1729646795108,5.9033667,2622.6,2622.1,3.43235]
[1729646795733,1.6755567,2622.5,2622.1,3.43235]
[1729646804632,1.6755567,2622.5,2622.1,4.62631292]
[1729646808783,1.6755567,2622.5,2622.2,1.19396292]
[1729646809077,5.1073967,2622.5,2622.1,4.62631292]
[1729646809438,5.1073967,2622.5,2622.1,1.19396292]
[1729646810239,8.5392967,2622.5,2622.1,1.19396292]
[1729646810445,5.1073967,2622.5,2622.1,1.19396292]
[1729646810900,1.6755567,2622.2,2622.1,1.19396292]
[1729646811075,1.6755567,2622.2,2622.0,1.19396292]
[1729646811076,5.1077867,2622.2,2622.0,1.19396292]
[1729646811237,5.1079167,2622.1,2621.9,1.74929886]
[1729646811431,1.6755567,2622.0,2621.9,1.74929886]
[1729646811855,1.6755567,2622.0,2621.9,0.55533594]
[1729646812056,1.6755567,2622.0,2621.8,1.19396292]
[1729646812935,1.6755567,2622.0,2621.7,1.19396292]
[1729646813400,1.6755567,2621.9,2621.7,1.19396292]
[1729646813674,1.6755567,2622.0,2621.7,1.19396292]
[1729646814032,1.6755567,2621.9,2621.7,1.19396292]
[1729646815154,1.6755567,2621.8,2621.7,1.19396292]
[1729646815352,1.6755567,2621.8,2621.6,2.61126494]
[1729646815763,5.1083167,2621.8,2621.6,1.19396292]
[1729646816091,1.6755567,2621.7,2621.5,1.19396292]
[1729646816596,1.6755567,2621.7,2621.4,2.01446292]
[1729646817452,1.6755567,2621.7,2621.4,0.8205]
[1729646817853,5.1083167,2621.8,2621.4,0.8205]
[1729646818294,1.6755567,2621.8,2621.4,0.8205]
[1729646818451,1.6755567,2621.8,2621.3,4.62728292]
[1729646818452,0.7674,2622.4,2622.0,3.43238]
[1729646818651,3.43177,2622.6,2622.1,4.25284]
[1729646818855,1.6755567,2622.5,2622.1,4.25284]
[1729646819067,6.86356,2622.6,2622.1,4.25284]
[1729646819802,5.1074267,2622.5,2622.1,4.25284]
[1729646820484,5.1074067,2622.5,2622.1,4.25284]
[1729646821254,1.6755567,2622.5,2622.1,4.25284]
[1729646821455,1.6755567,2622.6,2622.2,3.43222]
[1729646823071,5.1072767,2622.6,2622.1,4.25285]
[1729646823272,1.6755567,2622.5,2622.1,4.25285]
[1729646824263,1.6755567,2622.6,2622.1,4.25285]
[1729646824464,1.6755567,2622.5,2622.1,4.25285]
[1729646825413,5.1072667,2622.6,2622.1,4.25285]
[1729646825579,1.6755567,2622.5,2622.1,4.25285]
[1729646827161,5.1074167,2622.5,2622.1,4.25285]
[1729646827361,5.1074167,2622.5,2622.1,7.68509]
[1729646827362,1.6755567,2622.5,2622.1,7.68509]
[1729646827607,5.1072667,2622.6,2622.1,4.25274]
[1729646827763,1.6755567,2622.5,2622.1,4.25274]
[1729646828476,5.1072667,2622.6,2622.1,4.25274]
[1729646829592,5.1072667,2622.6,2622.1,7.68503]
[1729646830303,3.43161,2622.7,2622.3,0.8098]
[1729646830475,5.1070067,2622.8,2622.3,4.2419]
[1729646830677,3.43141,2622.9,2622.3,7.67391]
[1729646830878,1.6755567,2622.8,2622.4,3.43196]
[1729646831195,5.1070067,2622.8,2622.3,8.86780292]
[1729646831380,5.1070067,2622.8,2622.3,6.76989052]
[1729646831585,5.1070067,2622.8,2622.4,0.8098]
[1729646832976,1.6755567,2622.8,2622.4,0.8098]
[1729646833478,5.1070567,2622.8,2622.4,0.8098]
[1729646834110,3.43141,2622.9,2622.5,3.43183]
[1729646834326,5.1069667,2622.9,2622.5,3.43183]
[1729646834688,1.6755567,2622.8,2622.5,3.43183]
[1729646835522,5.1069667,2622.9,2622.5,3.43183]
[1729646836211,1.6755567,2622.8,2622.5,3.43183]
[1729646837009,1.6755567,2622.8,2622.4,0.8098]
[1729646837172,1.6755567,2622.8,2622.4,4.24176]
[1729646837816,1.6755567,2622.7,2622.4,4.24176]
[1729646837972,1.6755567,2622.5,2622.4,0.8098]
[1729646838175,1.6755567,2622.6,2622.4,0.8098]
[1729646838448,3.43152,2622.8,2622.4,0.8098]
[1729646838591,1.6755567,2622.9,2622.6,0.8098]
[1729646838792,3.43105,2623.1,2622.7,0.8098]
[1729646839314,5.1066067,2623.1,2622.7,0.8098]
[1729646839810,5.1068167,2623.0,2622.7,0.8098]
[1729646840472,1.6755567,2623.0,2622.7,0.8098]
[1729646840916,5.1067267,2623.1,2622.7,0.8098]
[1729646841222,1.6755567,2623.0,2622.7,4.24135]
[1729646842027,1.6755567,2623.0,2622.7,0.8098]
[1729646844584,5.1067467,2623.0,2622.7,0.8098]
[1729646847644,1.6755567,2623.0,2622.7,0.8098]
[1729646849553,3.43095,2623.2,2622.7,4.66542]
[1729646849753,1.6755567,2623.1,2622.7,1.23395]
[1729646850315,5.1066767,2623.1,2622.7,1.23395]
[1729646851470,3.43079,2623.3,2622.8,3.43142]
[1729646851763,3.81345604,2623.8,2623.2,0.7923]
[1729646851764,5.48904274,2623.8,2623.2,0.7923]
[1729646851933,5.48904274,2623.8,2623.3,3.43076]
[1729646851934,3.81348604,2623.8,2623.3,3.43076]
[1729646852138,3.43022,2623.8,2623.2,4.22313]
[1729646852340,5.1057767,2623.8,2623.3,3.4307]
[1729646852532,4.19124,2623.9,2623.4,3.43065]
[1729646852873,4.19124,2623.9,2623.2,4.94001849]
[1729646852874,1.6755567,2623.7,2623.2,8.37086849]
[1729646853782,1.6755567,2623.6,2623.2,1.50918849]
[1729646854066,1.6755567,2623.3,2623.0,0.7923]
[1729646856853,1.6755567,2623.2,2623.0,0.7923]
[1729646857165,1.6755567,2623.1,2622.8,0.7769]
[1729646857577,5.1064867,2623.2,2622.8,0.7769]
[1729646858878,1.6755567,2623.1,2622.8,0.7769]
[1729646859175,5.1064867,2623.2,2622.8,0.7769]
[1729646862971,1.6755567,2623.1,2622.8,0.7769]
[1729646863372,5.1064867,2623.2,2622.8,0.7769]
[1729646864469,1.6755567,2623.1,2622.8,0.7769]
[1729646865383,3.43093,2623.2,2622.8,0.7769]
[1729646865384,5.1064867,2623.2,2622.8,0.7769]
[1729646865691,1.6755567,2623.1,2622.8,0.7769]
[1729646865889,5.1064867,2623.2,2622.8,0.7769]
[1729646866093,1.6755567,2623.2,2622.8,4.20828]
[1729646866388,5.1063567,2623.3,2622.8,4.20828]
[1729646867086,1.6755567,2623.2,2622.8,4.20828]
[1729646868689,5.1063567,2623.3,2622.8,4.20828]
[1729646869588,1.6755567,2623.2,2622.8,4.20828]
[1729646870899,5.1063567,2623.3,2622.8,4.20828]
[1729646871504,1.6755567,2623.2,2622.8,4.20828]
[1729646874361,5.1064867,2623.2,2622.8,0.7769]
[1729646876676,5.1064867,2623.2,2622.8,4.20832]
[1729646882007,1.6755567,2623.2,2622.8,4.20832]
[1729646884817,3.43071,2623.4,2622.9,3.43122]
[1729646884990,3.43087,2623.3,2622.8,7.63969]
[1729646885190,3.43092,2623.2,2622.8,4.20827]
[1729646885518,5.1068867,2622.9,2622.7,1.19396292]
[1729646885722,5.9145967,2622.8,2622.3,3.99234057]
[1729646885874,5.1073267,2622.6,2622.3,2.00516292]
[1729646886104,5.9145967,2622.8,2622.3,4.24328]
[1729646886308,0.8076,2623.0,2622.4,1.6755567]
[1729646886614,1.6755567,2623.0,2622.7,0.8112]
[1729646889327,5.1067467,2623.0,2622.7,0.8112]
[1729646890544,1.6755567,2622.8,2622.7,0.8112]
[1729646890847,5.1069367,2622.9,2622.7,0.8112]
[1729646891711,5.1070767,2622.8,2622.5,0.8112]
[1729646891907,3.43152,2622.8,2622.5,0.8112]
[1729646895217,3.43164,2622.7,2622.5,0.8112]
[1729646895419,3.43164,2622.7,2622.3,2.00516292]
[1729646897762,5.1071967,2622.7,2622.3,2.00516292]
[1729646897963,1.6755567,2622.4,2622.3,1.19396292]
[1729646898264,5.1073867,2622.5,2622.0,4.24368]
[1729646899260,8.5393267,2622.5,2622.0,4.24368]
[1729646900628,3.43197,2622.4,2622.0,4.24368]
[1729646904268,3.43197,2622.4,2622.0,5.29826496]
[1729646911206,3.43197,2622.4,2622.0,4.24368]
[1729646925847,4.23936,2622.6,2622.1,3.4323]
[1729646929061,7.67115,2622.6,2622.1,3.4323]
[1729646930147,4.23936,2622.6,2622.1,3.4323]
[1729646931471,4.23936,2622.6,2622.1,4.62626292]